Workbook

Sheet Table 1
B2: Table 1: 2019/20 adjusted national budget
D3: Appropriation (ENE) | F3: Special appropriation | G3: Adjustments appropriation (AENE) | I3: Adjusted appropriation
N4: Confirmed by Debra 21 October 16H30
B5: R thousand
B7: Appropriation by vote | D7: 900299777 | G7: =SUM(G8:G11) -> 14868725 | I7: =+D7+G7 -> 915168502
B8: Roll-overs | G8: 344927
B9: Expenditure earmarked in the 2019 Budget speech for future allocation | G9: 16777800
B10: Self-financing | G10: 1655284
B11: Declared unspent funds | G11: -3909286
B12: Direct charges against the National Revenue Fund | D12: 743849648 | G12: 1517925 | I12: 745367573
B13: Of which:
B14: Members' remuneration | D14: 527518 | G14: 73000 | I14: =SUM(D14+G14) -> 600518
B15: Debt-service costs | D15: 202207844 | G15: 1522906 | I15: 203730750
B16: National Revenue Fund payments | D16: 135311 | G16: 224224 | I16: 359535
B17: Skills levy and sector education and training authorities | D17: 18758510 | G17: -182205 | I17: 18576305
B18: Magistrates' salaries | D18: 2383695 | G18: -120000 | I18: 2263695
B20: Subtotal | D20: =SUM(D12,D7) -> 1644149425 | G20: =SUM(G7+G12) -> 16386650 | I20: =+I7+I12 -> 1660536075
B21: Provisional allocation not assigned to votes | D21: 10000 | G21: =-D21 -> -10000 | I21: =SUM(D21:G21) -> 0
B22: Infrastructure fund not assigned to votes | D22: 1000000 | G22: -1000000 | I22: 0
B23: Provisional allocation for Eskom restructuring | D23: 5348000 | G23: -5348000 | I23: 0
B24: Compensation of employees and other baseline adjustments | D24: -4800000 | G24: 4800000 | I24: =SUM(D24:G24) -> 0
B25: Contingency reserve | D25: 13000000 | G25: -13000000 | I25: 0
B26: National government projected underspending | D26: 0 | G26: -1183766 | I26: =SUM(D26:G26) -> -1183766
B27: Local government repayment to the National Revenue Fund | D27: 0 | G27: -2000000 | I27: =SUM(D27:G27) -> -2000000
B28: Total adjustments expenditure estimate | D28: =SUM(D20:D27) -> 1658707425 | E28: =SUM(E20:E27) -> 0 | G28: =SUM(G20:G27) -> -1355116 | H28: =SUM(H20:H27) -> 0 | I28: =SUM(I20:I27) -> 1657352309 | L28: 1657352309 | M28: =+I28-L28 -> 0
B30: Special Appropriation Bill, 2019 | F30: 26000000 | I30: =SUM(D30:G30) -> 26000000
B31: Total estimated expenditure | D31: =SUM(D28+D30) -> 1658707425 | F31: =SUM(F28+F30) -> 26000000 | G31: =SUM(G28+G30) -> -1355116 | I31: =SUM(I28+I30) -> 1683352309 | M31: 0
B32: Budget revenue | D32: =SUM(D33:D35) -> 1403464376 | G32: =SUM(G33:G35) -> -44379926.46 | I32: =SUM(I33:I35) -> 1359084450
B33: Tax revenue | D33: 1422207998 | G33: -52529754.49 | I33: =+D33+G33 -> 1369678244 | L33: 1369678244
B34: Non-tax revenue | D34: 31536690.78 | G34: 8149828.031 | I34: =+D34+G34 -> 39686518.81 | L34: 39686518.81
B35: Less: Estimate of Southern Africa Customs Union payments | D35: -50280312.62 | G35: 0 | I35: =+D35+G35 -> -50280312.62 | L35: -50280312.62
N36: =309.8-309.2 -> 0.6
B37: Budget balance | D37: =+D32-D31 -> -255243048.8 | E37: 0 | F37: -26000000 | G37: -43024810.46 | I37: =+I32-I31 -> -324267859.3 | L37: =+D37+F37+G37 -> -324267859.3

Sheet Table 2
B2: Table 2: Adjusted appropriations per vote and adjusted estimates of direct charges against the National Revenue Fund
B3: Vote number and title | G3: 2019/20
G4: Adjustments appropriation
H5: Shifts | I5: Declared | K5: Total
F6: Special | G6: Roll- | H6: between | I6: unspent | J6: Other | K6: adjustments | L6: Adjusted
B7: R thousand | E7: Appropriation | F7: appropriation | G7: overs | H7: votes | I7: funds | J7: adjustments | K7: appropriation | L7: appropriation
B8: 1 | C8: The Presidency | E8: 691354 | F8: 0 | G8: 0 | H8: 0 | I8: 0 | J8: 0 | K8: 0 | L8: 691354
B9: 2 | C9: Parliament 1 | E9: 1993460 | F9: 0 | G9: 0 | H9: 0 | I9: 0 | J9: 0 | K9: 0 | L9: 1993460
B10: 3 | C10: Communications | E10: 1576091 | F10: 0 | G10: 0 | H10: 0 | I10: -5000 | J10: 3202000 | K10: 3197000 | L10: 4773091
B11: 4 | C11: Cooperative Governance and Traditional Affairs | E11: 90717787 | F11: 0 | G11: 0 | H11: -60733 | I11: -310500 | J11: 0 | K11: -371233 | L11: 90346554
B12: 5 | C12: Home Affairs | E12: 8339704 | F12: 0 | G12: 0 | H12: 0 | I12: 0 | J12: 1188000 | K12: 1188000 | L12: 9527704
B13: 6 | C13: International Relations and Cooperation | E13: 6508515 | F13: 0 | G13: 0 | H13: 0 | I13: 0 | J13: 0 | K13: 0 | L13: 6508515
B14: 7 | C14: National Treasury | E14: 30771079 | F14: 0 | G14: 0 | H14: 0 | I14: -179359 | J14: 100000 | K14: -79359 | L14: 30691720
B15: 8 | C15: Planning, Monitoring and Evaluation | E15: 956939 | F15: 0 | G15: 0 | H15: 0 | I15: 0 | J15: 0 | K15: 0 | L15: 956939
B16: 9 | C16: Public Enterprises | E16: 17945030 | F16: 26000000 | G16: 0 | H16: 0 | I16: -10000 | J16: 12948000 | K16: 12938000 | L16: 56883030
B17: 10 | C17: Public Service and Administration | E17: 1002143 | F17: 0 | G17: 0 | H17: 0 | I17: -8800 | J17: 0 | K17: -8800 | L17: 993343
B18: 11 | C18: Public Works | E18: 7808988 | F18: 0 | G18: 0 | H18: 0 | I18: -1943 | J18: 100000 | K18: 98057 | L18: 7907045
B19: 12 | C19: Statistics South Africa | E19: 2514368 | F19: 0 | G19: 0 | H19: 0 | I19: 0 | J19: 0 | K19: 0 | L19: 2514368
B20: 13 | C20: Women | E20: 244398 | F20: 0 | G20: 0 | H20: 0 | I20: 0 | J20: 0 | K20: 0 | L20: 244398
B21: 14 | C21: Basic Education | E21: 24504531 | F21: 0 | G21: 0 | H21: 0 | I21: -40000 | J21: 0 | K21: -40000 | L21: 24464531
B22: 15 | C22: Higher Education and Training | E22: 89498183 | F22: 0 | G22: 0 | H22: 8827 | I22: -897100 | J22: 429800 | K22: -458473 | L22: 89039710
B23: 16 | C23: Health | E23: 51460690 | F23: 0 | G23: 89300 | H23: -8827 | I23: -346000 | J23: 0 | K23: -265527 | L23: 51195163
B24: 17 | C24: Social Development | E24: 184791972 | F24: 0 | G24: 0 | H24: 0 | I24: -70000 | J24: 0 | K24: -70000 | L24: 184721972
B25: 18 | C25: Correctional Services | E25: 25407638 | F25: 0 | G25: 8800 | H25: 0 | I25: -100000 | J25: 444 | K25: -90756 | L25: 25316882
B26: 19 | C26: Defence and Military Veterans | E26: 50512992 | F26: 0 | G26: 0 | H26: 0 | I26: -10000 | J26: 385140 | K26: 375140 | L26: 50888132
B27: 20 | C27: Independent Police Investigative Directorate | E27: 336653 | F27: 0 | G27: 0 | H27: 0 | I27: 0 | J27: 0 | K27: 0 | L27: 336653
B28: 21 | C28: Justice and Constitutional Development | E28: 18717077 | F28: 0 | G28: 0 | H28: 64429 | I28: 0 | J28: 0 | K28: 64429 | L28: 18781506
B29: 22 | C29: Office of the Chief Justice and Judicial Administration | E29: 1197692 | F29: 0 | G29: 0 | H29: 0 | I29: 0 | J29: 0 | K29: 0 | L29: 1197692
B30: 23 | C30: Police | E30: 97595308 | F30: 0 | G30: 0 | H30: -64429 | I30: -703618 | J30: 0 | K30: -768047 | L30: 96827261
B31: 24 | C31: Agriculture, Forestry and Fisheries | E31: 7664889 | F31: 0 | G31: 4900 | H31: 0 | I31: -57700 | J31: 0 | K31: -52800 | L31: 7612089
B32: 25 | C32: Economic Development | E32: 1045393 | F32: 0 | G32: 0 | H32: 0 | I32: -55750 | J32: 0 | K32: -55750 | L32: 989643
B33: 26 | C33: Energy | E33: 7440021 | F33: 0 | G33: 0 | H33: 0 | I33: -256464 | J33: 0 | K33: -256464 | L33: 7183557
B34: 27 | C34: Environmental Affairs | E34: 7529671 | F34: 0 | G34: 0 | H34: 0 | I34: -50000 | J34: 4000 | K34: -46000 | L34: 7483671
B35: 28 | C35: Labour | E35: 3435133 | F35: 0 | G35: 0 | H35: 0 | I35: -1934 | J35: 0 | K35: -1934 | L35: 3433199
B36: 29 | C36: Mineral Resources | E36: 2005220 | F36: 0 | G36: 0 | H36: 0 | I36: -3000 | J36: 0 | K36: -3000 | L36: 2002220
B37: 30 | C37: Science and Technology | E37: 8150969 | F37: 0 | G37: 0 | H37: 0 | I37: -4793 | J37: 0 | K37: -4793 | L37: 8146176
B38: 31 | C38: Small Business Development | E38: 2568552 | F38: 0 | G38: 0 | H38: 0 | I38: -300000 | J38: 0 | K38: -300000 | L38: 2268552
B39: 32 | C39: Telecommunications and Postal Services | E39: 1684574 | F39: 0 | G39: 0 | H39: 0 | I39: 0 | J39: 0 | K39: 0 | L39: 1684574
B40: 33 | C40: Tourism | E40: 2392670 | F40: 0 | G40: 0 | H40: 0 | I40: 0 | J40: 0 | K40: 0 | L40: 2392670
B41: 34 | C41: Trade and Industry | E41: 10059027 | F41: 0 | G41: 0 | H41: 0 | I41: -50000 | J41: 75700 | K41: 25700 | L41: 10084727
B42: 35 | C42: Transport | E42: 64194177 | F42: 0 | G42: 0 | H42: 60733 | I42: -49779 | J42: 0 | K42: 10954 | L42: 64205131
B43: 36 | C43: Water and Sanitation | E43: 16440372 | F43: 0 | G43: 241927 | H43: 0 | I43: -215000 | J43: 0 | K43: 26927 | L43: 16467299
B44: 37 | C44: Arts and Culture | E44: 4617485 | F44: 0 | G44: 0 | H44: 0 | I44: -45400 | J44: 0 | K44: -45400 | L44: 4572085
B45: 38 | C45: Human Settlements | E45: 33879166 | F45: 0 | G45: 0 | H45: 0 | I45: -17252 | J45: 0 | K45: -17252 | L45: 33861914
B46: 39 | C46: Rural Development and Land Reform | E46: 10946208 | F46: 0 | G46: 0 | H46: 0 | I46: -117294 | J46: 0 | K46: -117294 | L46: 10828914
B47: 40 | C47: Sport and Recreation South Africa | E47: 1153658 | F47: 0 | G47: 0 | H47: 0 | I47: -2600 | J47: 0 | K47: -2600 | L47: 1151058
B48: Total appropriation by vote | E48: 900299777 | F48: 26000000 | G48: 344927 | H48: 0 | I48: -3909286 | J48: 18433084 | K48: 14868725 | L48: 941168502
B51: Table 2: Adjusted appropriations per vote and adjusted estimates of direct charges against the National Revenue Fund (continued)
G52: 2019/20
G53: Adjustments appropriation
H54: Shifts | I54: Declared | K54: Total
F55: Special | G55: Roll- | H55: between | I55: unspent | J55: Other | K55: adjustments | L55: Adjusted
B56: R thousand | E56: Appropriation | F56: appropriation | G56: overs | H56: votes | I56: funds | J56: adjustments | K56: appropriation | L56: appropriation
B57: Plus:
B58: Total direct charges against the National Revenue Fund | E58: 743849648 | F58: 0 | G58: 0 | H58: 0 | I58: -120000 | J58: 1637925 | K58: 1517925 | L58: 745367573
B59: President and deputy president salaries (The Presidency) | E59: 7254 | F59: 0 | G59: 0 | H59: 0 | I59: 0 | J59: 0 | K59: 0 | L59: 7254
B60: Members' remuneration (Parliament) | E60: 527518 | F60: 0 | G60: 0 | H60: 0 | I60: 0 | J60: 73000 | K60: 73000 | L60: 600518
B61: Debt-service costs (National Treasury) | E61: 202207844 | F61: 0 | G61: 0 | H61: 0 | I61: 0 | J61: 1522906 | K61: 1522906 | L61: 203730750
B62: Provincial equitable share (National Treasury) | E62: 505553753 | F62: 0 | G62: 0 | H62: 0 | I62: 0 | J62: 0 | K62: 0 | L62: 505553753
B63: General fuel levy sharing with metropolitan municipalities (National Treasury) | E63: 13166793 | F63: 0 | G63: 0 | H63: 0 | I63: 0 | J63: 0 | K63: 0 | L63: 13166793
B64: National Revenue Fund payments (National Treasury) | E64: 135311 | F64: 0 | G64: 0 | H64: 0 | I64: 0 | J64: 224224 | K64: 224224 | L64: 359535
B65: Skills levy and sector education and training authorities (Higher Education and Training) | E65: 18758510 | F65: 0 | G65: 0 | H65: 0 | I65: 0 | J65: -182205 | K65: -182205 | L65: 18576305
B66: Magistrates' salaries (Justice and Constitutional Development) | E66: 2383695 | F66: 0 | G66: 0 | H66: 0 | I66: -120000 | J66: 0 | K66: -120000 | L66: 2263695
B67: Judges' salaries (Office of the Chief Justice and Judicial Administration) | E67: 1098546 | F67: 0 | G67: 0 | H67: 0 | I67: 0 | J67: 0 | K67: 0 | L67: 1098546
B68: International Oil Pollution Compensation Fund (Transport) | E68: 10424 | F68: 0 | G68: 0 | H68: 0 | I68: 0 | J68: 0 | K68: 0 | L68: 10424
L69: 0
B70: Subtotal | E70: 1644149425 | F70: 26000000 | G70: 344927 | H70: 0 | I70: -4029286 | J70: 20071009 | K70: 16386650 | L70: 1686536075
B71: Provisional allocation not assigned to votes | E71: 10000 | J71: -10000 | K71: -10000 | L71: 0
B72: Infrastructure fund not assigned votes | E72: 1000000 | J72: -1000000 | K72: -1000000 | L72: 0
B73: Provisional allocation for Eskom restructuring | E73: 5348000 | J73: -5348000 | K73: -5348000 | L73: 0
B74: Compensation of employees and other baseline adjustments | E74: -4800000 | J74: 4800000 | K74: 4800000 | L74: 0
B75: Contingency reserve | E75: 13000000 | J75: -13000000 | K75: -13000000 | L75: 0
B76: National government projected underspending | E76: 0 | J76: -1183766 | K76: -1183766 | L76: -1183766
B77: Local government repayment to the National Revenue Fund | E77: 0 | J77: -2000000 | K77: -2000000 | L77: -2000000
B78: Total estimated expenditure | E78: 1658707425 | F78: 26000000 | G78: 344927 | H78: 0 | I78: -4029286 | J78: 2329243 | K78: -1355116 | L78: 1683352309
B79: 1. Amendments to Parliaments’ budget are determined independently of the national government’s budget processes in accordance with the Financial Management of Parliament and Provincial Legislatures Act (2009) as amended.

Sheet Table 2.1
B2: Table 2.1: Adjusted appropriations per economic classification
B3: Economic classification | E3: 2019/20
G4: Adjustments appropriation
I5: Shifts | J5: Declared | L5: Total
F6: Special | G6: Roll- | H6: Virements | I6: between | J6: unspent | K6: Other | L6: adjustments | M6: Adjusted
B7: R thousand | E7: Appropriation | F7: appropriation | G7: overs | H7: and shifts | I7: votes | J7: funds | K7: adjustments | L7: appropriation | M7: appropriation
B9: Current payments
B10: Compensation of employees | E10: 175642501 | F10: 0 | G10: 0 | H10: -532029 | I10: 25737 | J10: -547666 | K10: 73000 | L10: -980958 | M10: 174661543
B11: Goods and services | E11: 74874673 | F11: 0 | G11: 80000 | H11: 546777 | I11: -34564 | J11: -1362603 | K11: 1267700 | L11: 497310 | M11: 75371983
B12: Interest and rent on land | E12: 202354362 | F12: 0 | G12: 0 | H12: 13202 | I12: 0 | J12: 0 | K12: 1522906 | L12: 1536108 | M12: 203890470
B13: Total current payments | E13: 452871536 | F13: 0 | G13: 80000 | H13: 27950 | I13: -8827 | J13: -1910269 | K13: 2863606 | L13: 1052460 | M13: 453923996
B14: Transfers and subsidies
B15: Provinces and municipalities | E15: 739695919 | F15: 0 | G15: 0 | H15: 587046 | I15: 0 | J15: -11000 | K15: 0 | L15: 576046 | M15: 740271965
B16: Departmental agencies and accounts | E16: 135813451 | F16: 0 | G16: 0 | H16: 2393 | I16: 0 | J16: -185843 | K16: 404935 | L16: 221485 | M16: 136034936
B17: Higher education institutions | E17: 42319013 | F17: 0 | G17: 0 | H17: 0 | I17: 8827 | J17: -350000 | K17: 393500 | L17: 52327 | M17: 42371340
B18: Foreign governments and international organisations | E18: 2361434 | F18: 0 | G18: 0 | H18: -24058 | I18: 0 | J18: -1943 | K18: 0 | L18: -26001 | M18: 2335433
B19: Public corporations and private enterprises | E19: 36452320 | F19: 0 | G19: 0 | H19: -35771 | I19: 0 | J19: -764950 | K19: 0 | L19: -800721 | M19: 35651599
B20: Non-profit institutions | E20: 8607210 | F20: 0 | G20: 0 | H20: -14253 | I20: 0 | J20: -400000 | K20: 36300 | L20: -377953 | M20: 8229257
B21: Households | E21: 188109178 | F21: 0 | G21: 0 | H21: -187027 | I21: 0 | J21: -120000 | K21: 444 | L21: -306583 | M21: 187802595
B22: Total transfers and subsidies | E22: 1153358525 | F22: 0 | G22: 0 | H22: 328330 | I22: 8827 | J22: -1833736 | K22: 835179 | L22: -661400 | M22: 1152697125
B23: Payments for capital assets | M23: 0
B24: Buildings and other fixed structures | E24: 10360186 | F24: 0 | G24: 161927 | H24: -401034 | I24: 0 | J24: -225000 | K24: 0 | L24: -464107 | M24: 9896079
B25: Machinery and equipment | E25: 4555423 | F25: 0 | G25: 103000 | H25: -303128 | I25: 0 | J25: -30281 | K25: 0 | L25: -230409 | M25: 4325014
B26: Heritage assets | E26: 236637 | F26: 0 | G26: 0 | H26: 2154 | I26: 0 | J26: -30000 | K26: 0 | L26: -27846 | M26: 208791
B27: Specialised military assets | E27: 1794 | F27: 0 | G27: 0 | H27: 0 | I27: 0 | J27: 0 | K27: 0 | L27: 0 | M27: 1794
B28: Biological assets | E28: 8670 | F28: 0 | G28: 0 | H28: 3000 | I28: 0 | J28: 0 | K28: 0 | L28: 3000 | M28: 11670
B29: Land and subsoil assets | E29: 0 | F29: 0 | G29: 0 | H29: 436 | I29: 0 | J29: 0 | K29: 0 | L29: 436 | M29: 436
B30: Software and other intangible assets | E30: 261443 | F30: 0 | G30: 0 | H30: -847 | I30: 0 | J30: 0 | K30: 0 | L30: -847 | M30: 260596
B31: Total payments for capital assets | E31: 15424153 | F31: 0 | G31: 264927 | H31: -699419 | I31: 0 | J31: -285281 | K31: 0 | L31: -719773 | M31: 14704380
B32: Total payments for financial assets | E32: 22495211 | F32: 26000000 | G32: 0 | H32: 343139 | I32: 0 | J32: 0 | K32: 16372224 | L32: 16715363 | M32: 65210574
B33: Subtotal | E33: 1644149425 | F33: 26000000 | G33: 344927 | H33: 0 | I33: 0 | J33: -4029286 | K33: 20071009 | L33: 16386650 | M33: 1686536075
B34: Provisional allocation not assigned to votes | E34: 10000 | F34: 0 | G34: 0 | H34: 0 | I34: 0 | J34: 0 | K34: -10000 | L34: -10000 | M34: 0
B35: Infrastructure fund not assigned votes | E35: 1000000 | F35: 0 | G35: 0 | H35: 0 | I35: 0 | J35: 0 | K35: -1000000 | L35: -1000000 | M35: 0
B36: Provisional allocation for Eskom restructuring | E36: 5348000 | F36: 0 | G36: 0 | H36: 0 | I36: 0 | J36: 0 | K36: -5348000 | L36: -5348000 | M36: 0
B37: Compensation of employees and other baseline adjustments | E37: -4800000 | F37: 0 | G37: 0 | H37: 0 | I37: 0 | J37: 0 | K37: 4800000 | L37: 4800000 | M37: 0
B38: Contingency reserve | E38: 13000000 | F38: 0 | G38: 0 | H38: 0 | I38: 0 | J38: 0 | K38: -13000000 | L38: -13000000 | M38: 0
B39: National government projected underspending | E39: 0 | F39: 0 | G39: 0 | H39: 0 | I39: 0 | J39: 0 | K39: -1183766 | L39: -1183766 | M39: -1183766
B40: Local government repayment to the National Revenue Fund | E40: 0 | F40: 0 | G40: 0 | H40: 0 | I40: 0 | J40: 0 | K40: -2000000 | L40: -2000000 | M40: -2000000
B41: Total estimated expenditure | E41: 1658707425 | F41: 26000000 | G41: 344927 | H41: 0 | I41: 0 | J41: -4029286 | K41: 2329243 | L41: -1355116 | M41: 1683352309
B42: 1. Amendments to Parliaments’ budget are determined independently of the national government’s budget processes in accordance with the Financial Management of Parliament and Provincial Legislatures Act (2009) as amended.
F56: 1872694
F57: 493161

Sheet Table 3
C3: Table 3: Expenditure earmarked in the 2019 Budget speech for future allocation
C4: Vote and description of expenditure | E4: R thousand
C5: 3 | D5: Communications | E5: 3200000
D6: R3.2 billion for the South African Broadcasting Corporation
C7: 7 | D7: National Treasury | E7: 100000
D8: R100 million for project preparation for the Infrastructure Fund implementation unit to assist public sector institutions with project planning and appraisal
C9: 9 | D9: Public Enterprises | E9: 12948000
D10: R5.348 billion for Eskom, R5.5 billion for South African Airways, R1.8 billion for Denel and R300 million South African Express
C11: 11 | D11: Public Works | E11: 100000
D12: R100 million for the small harbours programme
C13: 15 | D13: Higher Education and Training | E13: 429800
D14: R429.8 million for the student housing infrastructure programme
C15: Total | E15: =SUM(E5:E14) -> 16777800

Sheet Table 4
C2: Table 4: Roll-overs
C3: Vote and description of expenditure | E3: R thousand
C4: 16 | D4: Health | E4: 89300
D5: R89.3 million for medical equipment in the Limpopo
C6: 18 | D6: Correctional Services | E6: 8800
D7: R8.8 million for vehicles
C8: 24 | D8: Agriculture, Forestry and Fisheries | E8: 4900
D9: R4.9 million for upgrading laboratory infrastructure and equipment
C10: 36 | D10: Water and Sanitation | E10: 241927
D11: R241.927 million for the emergency Vaal River system pollution remediation intervention project in the Emfuleni municipality, Gauteng
C12: Total | E12: =SUM(E4:E11) -> 344927

Sheet Table 5
B2: Table 5: Self-financing expenditure
B3: Vote and description of expenditure | D3: R thousand
B4: 3 | C4: Communications | D4: 2000
C5: Expenditure by the Government Communication and Information System to produce the Vuk'uzenzele newspaper, which is funded from revenue generated through the sale of advertising space in the newspaper
B6: 5 | C6: Home Affairs | D6: 1188000
C7: Expenditure incurred issuing official documents, which is defrayed by revenue generated from issuing the documents
B8: 18 | C8: Correctional Services | D8: 444
C9: Expenditure for offender gratuities, which is funded from revenue generated from the hiring out of offender labour
B10: 19 | C10: Defence and Military Veterans | D10: 385140
C11: Expenditure for defence activities, which is defrayed from reimbursements from the United Nations for South Africa’s contribution towards peace support operations, and the sale of equipment and spares procured through the special defence account
B12: 27 | C12: Environmental Affairs | D12: 4000
C13: Expenditure for the South African Elephant Research Project, which is funded from revenue generated from the sale of ivory
B14: 34 | C14: Trade and Industry | D14: 75700
C15: Unitary payment in respect of the public-private partnership for shared campus accommodation, which is funded from unitary payments received from public entities
B16: Total | D16: 1655284

Sheet Table 6
H3: 15 | I3: Higher Education | J3: 70000
C4: Table 6: Declared unspent funds and projected underspending | I4: Compensation of employees
C5: Vote and description of expenditure | E5: R thousand
C6: 3 | D6: Communications | E6: 5000
D7: R5 million from compensation of employees (Government Communication Information System)
C8: 4 | D8: Cooperative Governance and Traditional Affairs | E8: =300000+10500 -> 310500
D9: R300 million from the Community Work Programme programme and R10.5 million from the municipal systems improvement grant
C10: 7 | D10: National Treasury | E10: =22134+157225 -> 179359
D11: R157.225 million from the Jobs Fund and R22.134 million from compensation of employees
C12: 9 | D12: Public Enterprises | E12: 10000
D13: R10 million from compensation of employees
C14: 10 | D14: Public Service and Administration | E14: 8800
D15: R6 million from compensation of employees, and R2.8 million from goods and services
C16: 11 | D16: Public Works | E16: 1943
D17: R1.943 million from oganisations for the preservation of national memorials
C18: 14 | D18: Basic Education | E18: 40000
D19: R40 million from the school infrastructure backlogs grant
C20: 15 | D20: Higher Education | E20: 897100
D21: R400 million from the infrastructure efficiency grant, R350 million from higher education institutions, R145.4 million from compensation of employees, and R1.7 million from goods and services
C22: 16 | D22: Health | E22: 346000
D23: R230 million from the national health insurance indirect grant: personal services component, R45 million from goods and services, R30 million from the national health insurance indirect grant: health facility revitalisation component , R20 million from compensation of employees, R11 million from the human papillomavirus vaccine grant, and R10 million from the national health insurance indirect grant: non-personal services component (goods and services)
C24: 17 | D24: Social Development | E24: 70000
D25: R70 million from the national student financial aid scheme: social worker scholarships
C26: 18 | D26: Correctional Services | E26: 100000
D27: R100 million from compensation of employees
C28: 19 | D28: Defence and Military Veterans | E28: 10000
D29: R10 million from the Department of Military Veterans
C30: 23 | D30: Police | E30: =700000+3618 -> 703618
D31: R700 million from the implementation of the criminal justice system seven-point plan and R3.618 million from compensation of employees for the Civilian Secretariat for the Police Service
C32: 24 | D32: Agriculture, Forestry and Fisheries | E32: 57700
D33: R57.7 million from the Land and Agricultural Development Bank of South Africa
C34: 25 | D34: Economic Development | E34: =1500+54250 -> 55750
D35: R54.250 million from the Tirisano Construction Fund Trusts and R1.5 million from compensation of employees
C36: 26 | D36: Energy | E36: =6464+250000 -> 256464
D37: R250 million from the Eskom's integrated national electrification programme, R3.914 million from compensation of employees, R2.269 million from goods and services, and R281 000 from payments for capital assets
C38: 27 | D38: Environmental Affairs | E38: 50000
D39: R50 million from the Development Bank of Southern Africa's Green Fund
C40: 28 | D40: Labour | E40: 1934
D41: R1.934 million from compensation of employees
C42: 29 | D42: Mineral Resources | E42: 3000
D43: R 3 million from the Industrial Development Corporation
C44: 30 | D44: Science and Technology | E44: 4793
D45: R4.793 million from compensation of employees
C46: 31 | D46: Small Business development | E46: 300000
D47: R300 million from the Small Enterprise Finance Agency's Small Business and Innovation Fund
C48: 34 | D48: Trade and Industry | E48: 50000
D49: R50 million from manufacturing development incentives
C50: 35 | D50: Transport | E50: =29779+20000 -> 49779
D51: R29.779 million from compensation of employees and R20 million from other transfers to households
C52: 36 | D52: Water and Sanitation | E52: =30000+185000 -> 215000
D53: R30 million from compensation of employees and R185 million from the regional bulk infrastructure indirect grant
C54: 37 | D54: Arts and Culture | E54: 45400
D55: R40 million from capital works projects and R5.4 million from compensation of employees
C56: 38 | D56: Human Settlements | E56: 17252
D57: R17.252 million from goods and services
C58: 39 | D58: Rural Development and Land Reform | E58: 117294
D59: R74.212 million from compensation of employees, and R43.082 million from goods and services
C60: 40 | D60: Sport and Recreation South Africa | E60: 2600
D61: R2.6 million from compensation of employees
C63: Total declared unspent funds | E63: =SUM(E6:E62) -> 3909286
C64: Projected underspending | E64: =3183766-E65 -> 1183766
C65: Local government repayment to the National Revenue Fund | E65: 2000000
C66: Total | E66: =+E63+E64+E65 -> 7093052

Sheet Table 7
B2: Table 7: Expenditure outcome for 2018/19 and actual expenditure for 2019/20
B3: Vote number and title | F3: 2018/19 | J3: 2019/20
F4: Outcome | K4: Actual expenditure
G5: Apr 18 - | I5: Apr 18 - | L5: Apr 19 -
G6: Sep 18 | I6: Mar 19 | L6: Sep 19
G7: % of | I7: % of | L7: % of
E8: Adjusted | F8: Apr 18 - | G8: adjusted | H8: Apr 18 - | I8: adjusted | J8: Adjusted | K8: Apr 19 - | L8: adjusted
B9: R thousand | E9: appropriation | F9: Sep 18 | G9: appropriation | H9: Mar 19 | I9: appropriation | J9: appropriation | K9: Sep 19 | L9: appropriation
B10: 1 | C10: The Presidency | E10: 505580 | F10: 214579 | G10: =IF(ISERROR(F10/E10*100),0,F10/E10*100) -> 42.44214565 | H10: 459305 | I10: =IF(ISERROR(H10/E10*100),0,H10/E10*100) -> 90.84714585 | J10: 691354 | K10: 264237 | L10: =IF(ISERROR(K10/J10*100),0,K10/J10*100) -> 38.22021714
B11: 2 | C11: Parliament 1 | E11: 1872694 | F11: 0 | G11: 0 | H11: 1872694 | I11: 100 | J11: 1993460 | K11: 0 | L11: 0
B12: 3 | C12: Communications | E12: 1516246 | F12: 702860 | G12: 46.3552748 | H12: 1488121 | I12: 98.14508991 | J12: 4773091 | K12: 697622 | L12: 14.61572805
B13: 4 | C13: Cooperative Governance and Traditional Affairs | E13: 85037011 | F13: 33819723 | G13: 39.77059236 | H13: 81918384 | I13: 96.33262392 | J13: 90346554 | K13: 35383673 | L13: 39.16438584
B14: 5 | C14: Home Affairs | E14: 9047439 | F14: 4259967 | G14: 47.08478278 | H14: 9047239 | I14: 99.99778943 | J14: 9527704 | K14: 4727560 | L14: 49.61908976
B15: 6 | C15: International Relations and Cooperation | E15: 6552768 | F15: 3162680 | G15: 48.26479436 | H15: 6370239 | I15: 97.21447486 | J15: 6508515 | K15: 3382925 | L15: 51.97691025
B16: 7 | C16: National Treasury | E16: 29710233 | F16: 11132209 | G16: 37.46927532 | H16: 28652292 | I16: 96.43913597 | J16: 30691720 | K16: 11528541 | L16: 37.56238165
B17: 8 | C17: Planning, Monitoring and Evaluation | E17: 958035 | F17: 388710 | G17: 40.57367424 | H17: 874754 | I17: 91.30710256 | J17: 956939 | K17: 442000 | L17: 46.18894203
B18: 9 | C18: Public Enterprises | E18: 6522914 | F18: 101824 | G18: 1.561020121 | H18: 6474793 | I18: 99.26227756 | J18: 56883030 | K18: 21214539 | L18: 37.29502279
B19: 10 | C19: Public Service and Administration | E19: 950656 | F19: 422694 | G19: 44.46340211 | H19: 926014 | I19: 97.40789518 | J19: 993343 | K19: 448717 | L19: 45.17241275
B20: 11 | C20: Public Works | E20: 7483326 | F20: 3657915 | G20: 48.88087195 | H20: 7448549 | I20: 99.53527349 | J20: 7907045 | K20: 3777528 | L20: 47.77420642
B21: 12 | C21: Statistics South Africa | E21: 2271699 | F21: 1038032 | G21: 45.69408183 | H21: 2311135 | I21: 101.7359694 | J21: 2514368 | K21: 1140803 | L21: 45.37136171
B22: 13 | C22: Women | E22: 230207 | F22: 103255 | G22: 44.85311046 | H22: 222352 | I22: 96.58785354 | J22: 244398 | K22: 119462 | L22: 48.8801054
B23: 14 | C23: Basic Education | E23: 23699583 | F23: 13591217 | G23: 57.34791621 | H23: 23414767 | I23: 98.79822358 | J23: 24464531 | K23: 14316671 | L23: 58.52011224
B24: 15 | C24: Higher Education and Training | E24: 73124073 | F24: 53309151 | G24: 72.90232725 | H24: 72923738 | I24: 99.72603413 | J24: 89039710 | K24: 63506854 | L24: 71.32419232
B25: 16 | C25: Health | E25: 47508374 | F25: 22780428 | G25: 47.9503424 | H25: 46594585 | I25: 98.07657277 | J25: 51195163 | K25: 24997271 | L25: 48.82740778
B26: 17 | C26: Social Development | E26: 172822233 | F26: 84981563 | G26: 49.17281852 | H26: 172579918 | I26: 99.85978945 | J26: 184721972 | K26: 91076757 | L26: 49.30477734
B27: 18 | C27: Correctional Services | E27: 23848973 | F27: 10902106 | G27: 45.71310471 | H27: 23776916 | I27: 99.6978612 | J27: 25316882 | K27: 11383958 | L27: 44.96587692
B28: 19 | C28: Defence and Military Veterans | E28: 48496235 | F28: 22157267 | G28: 45.68863335 | H28: 48492073 | I28: 99.99141789 | J28: 50888132 | K28: 24274278 | L28: 47.70125577
B29: 20 | C29: Independent Police Investigative Directorate | E29: 315113 | F29: 137184 | G29: 43.53485892 | H29: 314831 | I29: 99.91050829 | J29: 336653 | K29: 145062 | L29: 43.08947195
B30: 21 | C30: Justice and Constitutional Development | E30: 17458829 | F30: 7921169 | G30: 45.37056294 | H30: 17182107 | I30: 98.41500252 | J30: 18781506 | K30: 8348869 | L30: 44.45260673
B31: 22 | C31: Office of the Chief Justice and Judicial Administration | E31: 1119747 | F31: 467929 | G31: 41.78881479 | H31: 1092019 | I31: 97.52372634 | J31: 1197692 | K31: 517080 | L31: 43.17303614
B32: 23 | C32: Police | E32: 91684161 | F32: 44028867 | G32: 48.02232634 | H32: 90428742 | I32: 98.63071332 | J32: 96827261 | K32: 46396418 | L32: 47.9166895
B33: 24 | C33: Agriculture, Forestry and Fisheries | E33: 7732803 | F33: 3754050 | G33: 48.54707924 | H33: 7574089 | I33: 97.94752304 | J33: 7612089 | K33: 3878938 | L33: 50.95760178
B34: 25 | C34: Economic Development | E34: 1072597 | F34: 500162 | G34: 46.63093408 | H34: 1044010 | I34: 97.3347865 | J34: 989643 | K34: 549802 | L34: 55.55558924
B35: 26 | C35: Energy | E35: 7163532 | F35: 3053711 | G35: 42.62856647 | H35: 7090239 | I35: 98.97685946 | J35: 7183557 | K35: 3095834 | L35: 43.0961152
B36: 27 | C36: Environmental Affairs | E36: 7430532 | F36: 2785026 | G36: 37.48084256 | H36: 6736971 | I36: 90.66606536 | J36: 7483671 | K36: 2711258 | L36: 36.22898441
B37: 28 | C37: Labour | E37: 3282870 | F37: 1401814 | G37: 42.70086845 | H37: 3086691 | I37: 94.02416179 | J37: 3433199 | K37: 1537288 | L37: 44.7771306
B38: 29 | C38: Mineral Resources | E38: 1890661 | F38: 1011416 | G38: 53.49536485 | H38: 1880123 | I38: 99.44262879 | J38: 2002220 | K38: 1115228 | L38: 55.69957347
B39: 30 | C39: Science and Technology | E39: 7958388 | F39: 4600992 | G39: 57.81311492 | H39: 7891926 | I39: 99.16488113 | J39: 8146176 | K39: 4098259 | L39: 50.30899161
B40: 31 | C40: Small Business Development | E40: 1488453 | F40: 731314 | G40: 49.13248856 | H40: 1419518 | I40: 95.36868144 | J40: 2268552 | K40: 906581 | L40: 39.96298079
B41: 32 | C41: Telecommunications and Postal Services | E41: 4006936 | F41: 557624 | G41: 13.91646884 | H41: 3994414 | I41: 99.68749189 | J41: 1684574 | K41: 761821 | L41: 45.22336211
B42: 33 | C42: Tourism | E42: 2261817 | F42: 1456029 | G42: 64.37430614 | H42: 2234802 | I42: 98.80560629 | J42: 2392670 | K42: 1484528 | L42: 62.04482858
B43: 34 | C43: Trade and Industry | E43: 9531758 | F43: 3413990 | G43: 35.81700249 | H43: 9490244 | I43: 99.56446649 | J43: 10084727 | K43: 4357297 | L43: 43.20689097
B44: 35 | C44: Transport | E44: 59831294 | F44: 22146824 | G44: 37.01545215 | H44: 59193454 | I44: 98.93393581 | J44: 64205131 | K44: 30072905 | L44: 46.8387877
B45: 36 | C45: Water and Sanitation | E45: 16873729 | F45: 7142402 | G45: 42.32853331 | H45: 16619434 | I45: 98.49295316 | J45: 16467299 | K45: 6120899 | L45: 37.17002406
B46: 37 | C46: Arts and Culture | E46: 4338737 | F46: 2048471 | G46: 47.21353242 | H46: 4237985 | I46: 97.67784957 | J46: 4572085 | K46: 2032433 | L46: 44.45308869
B47: 38 | C47: Human Settlements | E47: 32455843 | F47: 12200936 | G47: 37.59241749 | H47: 32195384 | I47: 99.19749735 | J47: 33861914 | K47: 12957870 | L47: 38.26679732
B48: 39 | C48: Rural Development and Land Reform | E48: 10425243 | F48: 4182718 | G48: 40.12106001 | H48: 10281100 | I48: 98.61736556 | J48: 10828914 | K48: 4383681 | L48: 40.48126156
B49: 40 | C49: Sport and Recreation South Africa | E49: 1090777 | F49: 463225 | G49: 42.46743377 | H49: 1076013 | I49: 98.64646944 | J49: 1151058 | K49: 503217 | L49: 43.71777964
B50: Total | E50: =SUM(E10:E49) -> 831572099 | F50: 390732033 | G50: 46.98715042 | H50: =SUM(H10:H49) -> 820911964 | I50: 98.71807447 | J50: =SUM(J10:J49) -> 941168502 | K50: 448658664 | L50: 47.67038666
B53: Table 7: Expenditure outcome for 2018/19 and actual expenditure for 2019/20 (continued)
F54: 2018/19 | J54: 2019/20
F55: Outcome | K55: Actual expenditure
G56: Apr 18 - | I56: Apr 18 - | L56: Apr 19 -
G57: Sep 18 | I57: Mar 19 | L57: Sep 19
G58: % of | I58: % of | L58: % of
E59: Adjusted | F59: Apr 18 - | G59: adjusted | H59: Apr 18 - | I59: adjusted | J59: Adjusted | K59: Apr 19 - | L59: adjusted
B60: R thousand | E60: appropriation | F60: Sep 18 | G60: appropriation | H60: Mar 19 | I60: appropriation | J60: appropriation | K60: Sep 19 | L60: appropriation
B61: Plus:
B62: Total direct charges against the National Revenue Fund | E62: =SUM(E63:E72) -> 685063925 | F62: =SUM(F63:F72) -> 336678669 | G62: 49.14558433 | H62: =SUM(H63:H72) -> 685817050 | I62: 100.109935 | J62: =SUM(J63:J72) -> 745367573 | K62: =SUM(K63:K72) -> 367404051 | L62: =IF(ISERROR(K62/J62*100),0,K62/J62*100) -> 49.29166016
B63: President and deputy president salaries (The Presidency) | E63: 6742 | F63: 2830 | G63: 41.97567487 | H63: 5681 | I63: 84.26283002 | J63: 7254 | K63: 2858 | L63: 39.3989523
B64: Members' remuneration (Parliament) | E64: 493161 | F64: 0 | G64: 0 | H64: 493161 | I64: 100 | J64: 600518 | K64: 0 | L64: 0
B65: Debt-service costs (National Treasury) | E65: 181099034 | F65: 87284619 | G65: 48.19717536 | H65: 181849082 | I65: 100.4141646 | J65: 203730750 | K65: 99516713 | L65: 48.84717354
B66: Provincial equitable share (National Treasury) | E66: 470286510 | F66: 235143271 | G66: 50.0000034 | H66: 470286510 | I66: 100 | J66: 505553753 | K66: 252776890 | L66: 50.00000267
B67: General fuel levy sharing with metropolitan municipalities (National Treasury) | E67: 12468554 | F67: 4156184 | G67: 33.33332799 | H67: 12468554 | I67: 100 | J67: 13166793 | K67: 4388928 | L67: 33.33331055
B68: National Revenue Fund payments (National Treasury) | E68: 149934 | F68: 149934 | G68: 100 | H68: 161616 | I68: 107.7914282 | J68: 359535 | K68: 359213 | L68: 99.91043987
B69: Skills levy and sector education and training authorities (Higher Education and Training) | E69: 17312161 | F69: 8439874 | G69: 48.75112934 | H69: 17479896 | I69: 100.9688854 | J69: 18576305 | K69: 8805545 | L69: 47.4020264
B70: Magistrates' salaries (Justice and Constitutional Development) | E70: 2215538 | F70: 995452 | G70: 44.93048641 | H70: 2047385 | I70: 92.4102859 | J70: 2263695 | K70: 1025562 | L70: 45.30477825
B71: Judges' salaries (Office of the Chief Justice and Judicial Administration) | E71: 1022091 | F71: 506505 | G71: 49.55576363 | H71: 1022189 | I71: 100.0095882 | J71: 1098546 | K71: 528342 | L71: 48.09466331
B72: International Oil Pollution Compensation Fund (Transport) | E72: 10200 | F72: 0 | G72: 0 | H72: 2976 | I72: 29.17647059 | J72: 10424 | K72: 0 | L72: 0
B74: Total | E74: =SUM(E50+E62) -> 1516636024 | F74: =SUM(F50+F62) -> 727410702 | G74: 47.96211421 | H74: =SUM(H50+H62) -> 1506729014 | I74: 99.34677735 | J74: =SUM(J50+J62) -> 1686536075 | K74: =SUM(K50+K62) -> 816062715 | L74: =IF(ISERROR(K74/J74*100),0,K74/J74*100) -> 48.38691132
B75: Economic classification
B76: Current payments
B77: Compensation of employees | E77: 163563379 | F77: 80196672.95 | G77: =IF(ISERROR(F77/E77*100),0,F77/E77*100) -> 49.03094656 | H77: 164773149 | I77: =IF(ISERROR(H77/E77*100),0,H77/E77*100) -> 100.7396338 | J77: 174661543 | K77: 85574416 | L77: =IF(ISERROR(K77/J77*100),0,K77/J77*100) -> 48.99442346
B78: Goods and services | E78: 68927954.25 | F78: 27028729.64 | G78: 39.21301587 | H78: 65433183 | I78: 94.92982015 | J78: 75371983 | K78: 28923945 | L78: =IF(ISERROR(K78/J78*100),0,K78/J78*100) -> 38.37492905
B79: Interest and rent on land | E79: 181247200 | F79: 87370009 | G79: 48.20488758 | H79: 182025713 | I79: 100.429531 | J79: 203890470 | K79: 99616715 | L79: 48.85795545
B80: Total current payments | E80: =SUM(E77:E79) -> 413738533.2 | F80: =SUM(F77:F79) -> 194595411.6 | G80: 47.03342714 | H80: =SUM(H77:H79) -> 412232045 | I80: 99.63588399 | J80: =SUM(J77:J79) -> 453923996 | K80: =SUM(K77:K79) -> 214115076 | L80: =IF(ISERROR(K80/J80*100),0,K80/J80*100) -> 47.1698077
B81: Transfers and subsidies
B82: Provinces and municipalities | E82: 692475951 | F82: 330312022.4 | G82: =IF(ISERROR(F82/E82*100),0,F82/E82*100) -> 47.70014351 | H82: 690729998 | I82: =IF(ISERROR(H82/E82*100),0,H82/E82*100) -> 99.74786807 | J82: 740271965 | K82: 353122779 | L82: =IF(ISERROR(K82/J82*100),0,K82/J82*100) -> 47.70176309 | BB82: 0
B83: Departmental agencies and accounts | E83: 121203482.8 | F83: 67871116 | G83: 55.9976615 | H83: 119649165 | I83: 98.71759646 | J83: 136034936 | K83: 77308961 | L83: 56.83022558 | BB83: -77478
B84: Higher education institutions | E84: 38680393 | F84: 27335596 | G84: 70.67041951 | H84: 36910818 | I84: 95.42513697 | J84: 42371340 | K84: 32638025 | L84: 77.02854099 | BB84: 0
B85: Foreign governments and international organisations | E85: 2359492 | F85: 671577 | G85: 28.46277928 | H85: 2345537 | I85: 99.40855913 | J85: 2335433 | K85: 801685 | L85: 34.32703914 | BB85: -77478
B86: Public corporations and private enterprises | E86: 31604788 | F86: 10987583.77 | G86: 34.76556708 | H86: 32909812 | I86: 104.1291971 | J86: 35651599 | K86: 16491933 | L86: 46.2586068
B87: Non-profit institutions | E87: 7394200 | F87: 3375414 | G87: 45.64948203 | H87: 7350198 | I87: 99.40491196 | J87: 8229257 | K87: 3597576 | L87: 43.71689935 | BB87: 0
B88: Households | E88: 179171789 | F88: 86986103.53 | G88: 48.54899536 | H88: 175640877 | I88: 98.02931476 | J88: 187802595 | K88: 92565921 | L88: 49.28894673 | BB88: 0
B89: Total transfers and subsidies | E89: =SUM(E82:E88) -> 1072890096 | F89: =SUM(F82:F88) -> 527539412.7 | G89: 49.16993966 | H89: =SUM(H82:H88) -> 1065536405 | I89: 99.31459049 | J89: =SUM(J82:J88) -> 1152697125 | K89: =SUM(K82:K88) -> 576526880 | L89: 50.01546959 | BB89: 0
B90: Payments for capital assets | BB90: 0
B91: Buildings and other fixed structures | E91: 11095812 | F91: 3607757 | G91: =IF(ISERROR(F91/E91*100),0,F91/E91*100) -> 32.51458298 | H91: 9648311 | I91: =IF(ISERROR(H91/E91*100),0,H91/E91*100) -> 86.95452843 | J91: 9896079 | K91: 2628565 | L91: =IF(ISERROR(K91/J91*100),0,K91/J91*100) -> 26.56168165 | BB91: 0
B92: Machinery and equipment | E92: 4669521 | F92: 1192970.416 | G92: 25.54802551 | H92: 4250394 | I92: 91.02419713 | J92: 4325014 | K92: 1004691 | L92: 23.22977452 | BB92: 0
B93: Heritage assets | E93: 139984 | F93: 5714 | G93: 4.081895074 | H93: 32827 | I93: 23.4505372 | J93: 208791 | K93: 33552 | L93: 16.06965817 | BB93: 0
B94: Specialised military assets | E94: 2758 | F94: 1736 | G94: 62.94416244 | H94: 27 | I94: 0.9789702683 | J94: 1794 | K94: 0 | L94: 0 | BB94: 0
B95: Biological assets | E95: 9467 | F95: 4666.4 | G95: 49.29122214 | H95: 10075 | I95: 106.4223091 | J95: 11670 | K95: 1188 | L95: 10.17994859
B96: Land and subsoil assets | E96: 25259 | F96: 21641 | G96: 85.67639257 | H96: 25258 | I96: 99.99604102 | J96: 436 | K96: 588 | L96: 134.8623853 | BB96: 0
B97: Software and other intangible assets | E97: 267464 | F97: 182002.8975 | G97: 68.04762417 | H97: 468334 | I97: 175.1016959 | J97: 260596 | K97: 196098 | L97: 75.24981197 | BB97: 77478
B98: Total payments for capital assets | E98: =SUM(E91:E97) -> 16210265 | F98: =SUM(F91:F97) -> 5016487.714 | G98: 30.94636463 | H98: =SUM(H91:H97) -> 14435226 | I98: 89.04990757 | J98: =SUM(J91:J97) -> 14704380 | K98: =SUM(K91:K97) -> 3864682 | L98: 26.28252262 | BB98: 0
B99: Total payments for financial assets | E99: 13797130 | F99: 259390 | G99: 1.880028673 | H99: 14525338 | I99: 105.2779672 | J99: 65210574 | K99: 21556077 | L99: 33.05610682 | BB99: 0
B100: Total | E100: =+E80+E89+E98+E99 -> 1516636024 | F100: =SUM(F99+F98+F89+F80) -> 727410702 | G100: 47.96211421 | H100: =SUM(H99+H98+H89+H80) -> 1506729014 | I100: 99.34677735 | J100: =SUM(J99+J98+J89+J80) -> 1686536075 | K100: =SUM(K99+K98+K89+K80) -> 816062715 | L100: 48.38691132 | BB100: 0
B101: 1. Amendments to Parliaments’ budget are determined independently of the national government’s budget processes in accordance with the Financial Management of Parliament and Provincial Legislatures Act (2009) as amended. | BB101: 0
BB102: 0

Sheet Table 8
B2: Table 8: Departmental receipts
B3: Vote number and title | F3: 2018/19 | J3: 2019/20
F4: Outcome | L4: Actual receipts
G5: Apr 18 – | I5: Apr 18 – | M5: Apr 19 –
G6: Sep 18 | I6: Mar 19 | M6: Sep 19
G7: % of | I7: % of | M7: % of
E8: Adjusted | F8: Apr 18 – | G8: adjusted | H8: Apr 18 – | I8: adjusted | J8: Budget | K8: Adjusted | L8: Apr 19 – | M8: adjusted
B9: R thousand | E9: estimate | F9: Sep 18 | G9: estimate | H9: Mar 19 | I9: estimate | J9: estimate | K9: estimate | L9: Sep 19 | M9: estimate
B10: 1 | C10: The Presidency | E10: 636 | F10: 280 | G10: =IF(ISERROR(F10/$E10*100),0,F10/$E10*100) -> 44.02515723 | H10: 1374 | I10: =IF(ISERROR(H10/$E10*100),0,H10/$E10*100) -> 216.0377358 | J10: 562 | K10: 583 | L10: 388 | M10: =IF(ISERROR(L10/$K10*100),0,L10/$K10*100) -> 66.55231561
B11: 2 | C11: Parliament 1 | E11: 0 | F11: 0 | G11: 0 | H11: 0 | I11: 0 | J11: 0 | K11: 0 | L11: 0 | M11: 0
B12: 3 | C12: Communications | E12: 6065 | F12: 2717 | G12: 44.79802143 | H12: 5220 | I12: 86.06760099 | J12: 3679 | K12: 5457 | L12: 2091 | M12: 38.31775701
B13: 4 | C13: Cooperative Governance and Traditional Affairs | E13: 43895 | F13: 43594 | G13: 99.3142727 | H13: 44720 | I13: 101.8794851 | J13: 2013 | K13: 2097 | L13: 1003 | M13: 47.83023367
B14: 5 | C14: Home Affairs | E14: 1132000 | F14: 327785 | G14: 28.95627208 | H14: 1130466 | I14: 99.86448763 | J14: 1183296 | K14: 1192423 | L14: 366034 | M14: 30.69665714
B15: 6 | C15: International Relations and Cooperation | E15: 40388 | F15: 16152 | G15: 39.99207685 | H15: 34561 | I15: 85.57244726 | J15: 34468 | K15: 34468 | L15: 32930 | M15: 95.53789022
B16: 7 | C16: National Treasury | E16: 14008032 | F16: 6252910 | G16: 44.63803338 | H16: 19113097 | I16: 136.4438416 | J16: 8649122 | K16: 14147359 | L16: 9539579 | M16: 67.4301048
B17: 8 | C17: Planning, Monitoring and Evaluation | E17: 1582 | F17: 1278 | G17: 80.78381795 | H17: 1461 | I17: 92.35145386 | J17: 1009 | K17: 7234 | L17: 1134 | M17: 15.67597456
B18: 9 | C18: Public Enterprises | E18: 217 | F18: 164 | G18: 75.57603687 | H18: 366 | I18: 168.6635945 | J18: 214 | K18: 214 | L18: 62 | M18: 28.97196262
B19: 10 | C19: Public Service and Administration | E19: 1398 | F19: 737 | G19: 52.71816881 | H19: 1517 | I19: 108.5121602 | J19: 1419 | K19: 1287 | L19: 963 | M19: 74.82517483
B20: 11 | C20: Public Works | E20: 3374 | F20: 909 | G20: 26.94131595 | H20: 3478 | I20: 103.0823948 | J20: 1949 | K20: 14620 | L20: 11877 | M20: 81.2380301
B21: 12 | C21: Statistics South Africa | E21: 3149 | F21: 2539 | G21: 80.62877104 | H21: 3473 | I21: 110.2889806 | J21: 1683 | K21: 1524 | L21: 994 | M21: 65.22309711
B22: 13 | C22: Women | D22: =SUM(D23:D30) -> 0 | E22: 55 | F22: 35 | G22: 63.63636364 | H22: 120 | I22: 218.1818182 | J22: 59 | K22: 120 | L22: 98 | M22: 81.66666667
B23: 14 | C23: Basic Education | E23: 14933 | F23: 1634 | G23: 10.94220853 | H23: 10301 | I23: 68.98145048 | J23: 10882 | K23: 14882 | L23: 11913 | M23: 80.0497245
B24: 15 | C24: Higher Education and Training | E24: 29877 | F24: 10051 | G24: 33.64126251 | H24: 27674 | I24: 92.62643505 | J24: 30416 | K24: 30943 | L24: 12382 | M24: 40.01551239
B25: 16 | C25: Health | E25: 7821 | F25: 2219 | G25: 28.3723309 | H25: 6013 | I25: 76.88275157 | J25: 4044 | K25: 5788 | L25: 3999 | M25: 69.09122322
B26: 17 | C26: Social Development | E26: 16583 | F26: 1675 | G26: 10.10070554 | H26: 50678 | I26: 305.6021227 | J26: 12834 | K26: 27342 | L26: 653 | M26: 2.388267135
B27: 18 | C27: Correctional Services | E27: 144106 | F27: 65198 | G27: 45.24308495 | H27: 128231 | I27: 88.98380359 | J27: 156231 | K27: 176006 | L27: 63952 | M27: 36.33512494
B28: 19 | C28: Defence and Military Veterans | E28: 1085803 | F28: 327811 | G28: 30.19065153 | H28: 814444 | I28: 75.00844997 | J28: 1145359 | K28: 1145584 | L28: 320902 | M28: 28.01208816
B29: 20 | C29: Independent Police Investigative Directorate | E29: 291 | F29: 186 | G29: 63.91752577 | H29: 285 | I29: 97.93814433 | J29: 221 | K29: 373 | L29: 215 | M29: 57.64075067
B30: 21 | C30: Justice and Constitutional Development | E30: 355651 | F30: 174571 | G30: 49.08491752 | H30: 376168 | I30: 105.7688577 | J30: 430352 | K30: 388462 | L30: 206055 | M30: 53.04379836
B31: 22 | C31: Office of the Chief Justice and Judicial Administration | E31: 1178 | F31: 932 | G31: 79.11714771 | H31: 1495 | I31: 126.910017 | J31: 891 | K31: 2570 | L31: 2204 | M31: 85.75875486
B32: 23 | C32: Police | D32: =+D33+D34+D35+D36 -> 0 | E32: 540546 | F32: 297248 | G32: 54.9903246 | H32: 563345 | I32: 104.2177724 | J32: 530578 | K32: 530542 | L32: 276681 | M32: 52.15063086
B33: 24 | C33: Agriculture, Forestry and Fisheries | E33: 251092 | F33: 109467 | G33: 43.59637105 | H33: 209425 | I33: 83.40568397 | J33: 262140 | K33: 216117 | L33: 108856 | M33: 50.36901308
B34: 25 | C34: Economic Development | E34: 284964 | F34: 104439 | G34: 36.64989262 | H34: 146755 | I34: 51.49948765 | J34: 173397 | K34: 119297 | L34: 61652 | M34: 51.67942195
B35: 26 | C35: Energy | E35: 6170 | F35: 3054 | G35: 49.49756888 | H35: 54680 | I35: 886.2236629 | J35: 6309 | K35: 5993 | L35: 2239 | M35: 37.36025363
B36: 27 | C36: Environmental Affairs | E36: 8205 | F36: 4225 | G36: 51.49299208 | H36: 29387 | I36: 358.1596587 | J36: 21142 | K36: 70450 | L36: 63328 | M36: 89.89070263
B37: 28 | C37: Labour | E37: 10521 | F37: 5777 | G37: 54.90922916 | H37: 10781 | I37: 102.471248 | J37: 12414 | K37: 19561 | L37: 7984 | M37: 40.81590921
B38: 29 | C38: Mineral Resources | D38: =+D39 -> 0 | E38: 43027 | F38: 22141 | G38: 51.45838659 | H38: 33693 | I38: 78.30664466 | J38: 41072 | K38: 42090 | L38: 21034 | M38: 49.97386553
B39: 30 | C39: Science and Technology | E39: 9644 | F39: 6376 | G39: 66.11364579 | H39: 32749 | I39: 339.5790129 | J39: 545 | K39: 20081 | L39: 16856 | M39: 83.94004283
B40: 31 | C40: Small Business Development | E40: 112 | F40: 72 | G40: 64.28571429 | H40: 1329 | I40: 1186.607143 | J40: 70 | K40: 23234 | L40: 23199 | M40: 99.8493587
B41: 32 | C41: Telecommunications and Postal Services | E41: 517828 | F41: 516156 | G41: 99.67711286 | H41: 749642 | I41: 144.766602 | J41: 600635 | K41: 598385 | L41: 514721 | M41: 86.0183661
B42: 33 | C42: Tourism | D42: =+D22+D32+D38 -> 0 | E42: 3863 | F42: 1939 | G42: 50.19414962 | H42: 2482 | I42: 64.25058245 | J42: 3928 | K42: 1510 | L42: 744 | M42: 49.27152318
B43: 34 | C43: Trade and Industry | E43: 73728 | F43: 35984 | G43: 48.80642361 | H43: 73305 | I43: 99.42626953 | J43: 77865 | K43: 76567 | L43: 42634 | M43: 55.68195175
B44: 35 | C44: Transport | E44: 281801 | F44: 895 | G44: 0.3176000085 | H44: 230295 | I44: 81.72256309 | J44: 326822 | K44: 112119 | L44: 1176 | M44: 1.048885559
B45: 36 | C45: Water and Sanitation | E45: 18237 | F45: 13296 | G45: 72.90672808 | H45: 66410 | I45: 364.1498053 | J45: 8031 | K45: 15285 | L45: 11503 | M45: 75.2567877
B46: 37 | C46: Arts and Culture | E46: 573 | F46: 310 | G46: 54.10122164 | H46: 966 | I46: 168.5863874 | J46: 758 | K46: 940 | L46: 481 | M46: 51.17021277
B47: 38 | C47: Human Settlements | E47: 850 | F47: 599 | G47: 70.47058824 | H47: 1564 | I47: 184 | J47: 242 | K47: 728 | L47: 350 | M47: 48.07692308
B48: 39 | C48: Rural Development and Land Reform | E48: 86594 | F48: 38366 | G48: 44.30561009 | H48: 114509 | I48: 132.2366446 | J48: 83478 | K48: 119254 | L48: 66480 | M48: 55.74655777
B49: 40 | C49: Sport and Recreation South Africa | E49: 152 | F49: 56 | G49: 36.84210526 | H49: 139 | I49: 91.44736842 | J49: 242 | K49: 242 | L49: 95 | M49: 39.25619835
B51: Subtotal departmental receipts as per Adjusted Estimates of National Expenditure | E51: =SUM(E10:E49) -> 19034941 | F51: =SUM(F10:F49) -> 8393777 | G51: =IF(ISERROR(F51/$E51*100),0,F51/$E51*100) -> 44.09667989 | H51: =SUM(H10:H49) -> 24076598 | I51: =IF(ISERROR(H51/$E51*100),0,H51/$E51*100) -> 126.4863285 | J51: =SUM(J10:J49) -> 13820371 | K51: =SUM(K10:K49) -> 19171731 | L51: =SUM(L10:L49) -> 11799441 | M51: =IF(ISERROR(L51/$K51*100),0,L51/$K51*100) -> 61.5460388
B52: Plus: Sale of non-core assets | E52: 0 | F52: 0 | G52: 0 | H52: 0 | I52: 0 | J52: 7000000 | K52: 7000000 | L52: 0 | M52: 0
B53: Plus: Public entities conduit 2 receipts | E53: =+E55+E56 -> 1935655 | F53: =+F55+F56 -> 1413215 | G53: =IF(ISERROR(F53/$E53*100),0,F53/$E53*100) -> 73.00965306 | H53: =+H55+H56 -> 2234468 | I53: =IF(ISERROR(H53/$E53*100),0,H53/$E53*100) -> 115.4373068 | J53: =+J55+J56 -> 1732598 | K53: =+K55+K56 -> 1958777 | L53: =+L55+L56 -> 953766 | M53: =IF(ISERROR(L53/$K53*100),0,L53/$K53*100) -> 48.69191337
B54: of which:
B55: Independent Communications Authority of South Africa | E55: 1308600 | F55: 880810 | G55: =IF(ISERROR(F55/$E55*100),0,F55/$E55*100) -> 67.30933822 | H55: 1397633 | I55: 106.8036833 | J55: 1380573 | K55: 1584558 | L55: 953766 | M55: 60.19129625
B56: Competition Commission | E56: 627055 | F56: 532405 | G56: 84.90563029 | H56: 836835 | I56: 133.4548006 | J56: 352025 | K56: 374219 | L56: 0 | M56: 0
B57: Plus: South African Revenue Services | E57: =+E58+E59 -> 7990061 | F57: =+F58+F59 -> 3902528 | G57: =IF(ISERROR(F57/$E57*100),0,F57/$E57*100) -> 48.84228043 | H57: =+H58+H59 -> 9025257.269 | I57: 112.9560496 | J57: =+J58+J59 -> 8983721.778 | K57: =+K58+K59 -> 11556011 | L57: =+L58+L59 -> 5410107 | M57: 46.81638846
B58: of which: Mineral and petroleum royalties | E58: 7445220 | F58: 3490814 | G58: =IF(ISERROR(F58/$E58*100),0,F58/$E58*100) -> 46.88664673 | H58: 8611780.738 | I58: 115.6685865 | J58: 8766175.064 | K58: 11338464 | L58: 5432038 | M58: 47.9080588
B59: Mining leases and ownership | E59: 544841 | F59: 411714 | G59: 75.56589904 | H59: 413476.5309 | I59: 75.88939359 | J59: 217546.7148 | K59: 217547 | L59: -21931 | M59: -10.08103996
B61: Total departmental and other receipts | E61: =SUM(E51+E52+E53+E57) -> 28960657 | F61: =SUM(F51+F52+F53+F57) -> 13709520 | G61: =IF(ISERROR(F61/$E61*100),0,F61/$E61*100) -> 47.33842882 | H61: =SUM(H51+H52+H53+H57) -> 35336323.27 | I61: 122.0149228 | J61: =SUM(J51+J52+J53+J57) -> 31536690.78 | K61: =SUM(K51+K52+K53+K57) -> 39686519 | L61: =SUM(L51+L52+L53+L57) -> 18163314 | M61: 45.76696182
B62: 1. Amendments to Parliaments’ budget are determined independently of the national government’s budget processes in accordance with the Financial Management of Parliament and Provincial Legislatures Act (2009) as amended.
B63: 2. Receipts for which a department serves as a conduit to deposit funds into the National Revenue Fund and hence included as other receipts for consolidation purposes. These receipts are however accordingly excluded from departmental financial statements.

Sheet Table 8.1
B2: Table 8.1: Departmental receipts per economic classification
E3: 2018/19 | I3: 2019/20
E4: Outcome | K4: Actual receipts
F5: Apr 18 – | H5: Apr 18 – | L5: Apr 19 –
F6: Sep 18 | H6: Mar 19 | L6: Sep 19
F7: % of | H7: % of | L7: % of
D8: Adjusted | E8: Apr 18 – | F8: adjusted | G8: Apr 18 – | H8: adjusted | I8: Budget | J8: Adjusted | K8: Apr 19 – | L8: adjusted
D9: estimate | E9: Sep 18 | F9: estimate | G9: Mar 19 | H9: estimate | I9: estimate | J9: estimate | K9: Sep 19 | L9: estimate
B10: Departmental receipts
B11: Tax receipts | D11: 4804 | E11: 317814 | F11: =IF(ISERROR(E11/D11*100),0,E11/D11*100) -> 6615.61199 | G11: 3773 | H11: =IF(ISERROR(G11/D11*100),0,G11/D11*100) -> 78.53871774 | I11: 5500 | J11: 4900 | K11: 2102 | L11: =IF(ISERROR(K11/$J11*100),0,K11/$J11*100) -> 42.89795918
B12: Sales of goods and services other than capital assets | D12: 2380705 | E12: 660876 | F12: 27.75967623 | G12: 2352170 | H12: 98.80140547 | I12: 2371905 | J12: 2460956 | K12: 978413 | L12: 39.75743573
B13: Transfers received | D13: 599722 | E13: 132179 | F13: 22.04004522 | G13: 351664 | H13: 58.63783553 | I13: 602202 | J13: 625094 | K13: 140056 | L13: 22.4055902
B14: Fines, penalties and forfeits | D14: 534425 | E14: 244422 | F14: 45.73551013 | G14: 382707 | H14: 71.61098377 | I14: 436800 | J14: 318173 | K14: 185946 | L14: 58.4417911
B15: Interest, dividends and rent on land | D15: 4203747 | E15: 1842925 | F15: 43.84005507 | G15: 7818856 | H15: 185.9973019 | I15: 4927922 | J15: 4854375 | K15: 1883123 | L15: 38.79228531
B16: Sales of capital assets | D16: 119185 | E16: 63572 | F16: 53.33892688 | G16: 111918 | H16: 93.90275622 | I16: 129597 | J16: 111446 | K16: 35079 | L16: 31.47623064
B17: Financial transactions in assets and liabilities | D17: 11192353 | E17: 5131989 | F17: 45.85263706 | G17: 13055510 | H17: 116.6466962 | I17: 5346445 | J17: 10796787 | K17: 8574722 | L17: 79.41920129
B18: Subtotal departmental receipts as per Adjusted Estimates of National Expenditure | D18: =SUM(D11:D17) -> 19034941 | E18: =SUM(E11:E17) -> 8393777 | F18: 44.09667989 | G18: =SUM(G11:G17) -> 24076598 | H18: 126.4863285 | I18: =SUM(I11:I17) -> 13820371 | J18: =SUM(J11:J17) -> 19171731 | K18: =SUM(K11:K17) -> 11799441 | L18: 61.5460388

Sheet Sheet1 (hidden)
